Cogmind - Beta 16 @@@ ROGUE MODE // 2026.01.30 @ 21:44:08 Player: Bowster Result: Destroyed by P-80 Master with Gamma Rifle Performance ------------- Evolutions (7) 3500 Regions Visited (9) 1800 Robots Destroyed (83) 415 Value Destroyed (3602) 3602 Prototype IDs (4) 80 Alien Tech Used (0) 0 Bonus (0) 0 TOTAL SCORE: 9397 Bonus ------- None Cogmind --------- Core Integrity 0/1300 Matter 300/300 Energy 762/770 System Corruption 42% Temperature Warning (360) Movement Treading (225) Ox1 Location -3/Research Parts ------- > --- POWER (3) -------- Particle Reactor Light Particle Reactor > --- PROPULSION (4) --- Biometal Medium Treads Improved Antigrav System > --- UTILITY (9) ------ Energy Well Structural Scanner Advanced Visual Processing Unit Improved Signal Interpreter Advanced Target Analyzer Advanced Target Analyzer Advanced Hacking Suite > --- WEAPON (5) ------- Compact HERF Cannon > --- INVENTORY (5) ---- Light Particle Reactor Advanced Heat Sink Large Storage Unit Improved Energy Well (400) Advanced Component Analysis Suite Peak State ------------ > --- POWER ------------ Light Antimatter Reactor Micro Antimatter Reactor Quantum Reactor > --- PROPULSION ------- Medium Treads Flexi-carbon Leg Flexi-carbon Leg Myomer Leg > --- UTILITY ---------- Advanced Heat Sink Advanced Heat Sink Advanced Heat Sink Large Storage Unit Energy Well Advanced Visual Processing Unit Improved Signal Interpreter Particle Charger Cloaking Device > --- WEAPON ----------- Plasma Rifle Heavy Disruptor Cannon Heavy Plasma Cannon Nova Cannon > --- INVENTORY -------- Micro Fission Core Light Particle Reactor Advanced Heat Sink Advanced Heat Sink Large Storage Unit Structural Scanner Improved Sensor Array EM Disruption Field Advanced Hacking Suite Gamma Rifle Heavy Laser Heavy Laser Coil Gun Linear Accelerator Long-range Missile Launcher [Rating: 119] Favorites ----------- Power Nuclear Core Engine Light Deuterium Engine Power Core Nuclear Core Reactor Quantum Reactor Propulsion Light Treads Treads Light Treads Leg Flexi-carbon Leg Wheel Compact Wheel Hover Unit Improved Antigrav System Utility Large Storage Unit Device Advanced Heat Sink Storage Large Storage Unit Processor Improved Signal Interpreter Hackware Advanced Hacking Suite Protection Layered Light Armor Plating Weapon Spread Laser Energy Gun Spread Laser Energy Cannon Advanced Beam Cannon Ballistic Gun Light Assault Rifle Ballistic Cannon Linear Accelerator Launcher Long-range Missile Launcher Special Weapon Mining Laser Build | -11 -10 -9 -9 -8 -7 -6 -5 -4 -3 ------- Run | Yrd Mat Mat Min Mat Fac Fac Fac Fac Res Slots Evolved 14 | . . 2 . 2 2 2 2 2 2 Power 2 | . . . . . 1 . . 1 . Propulsion 2 | . . 1 . . . 1 . . . Utility 7 | . . . . 2 1 1 1 1 1 Weapon 3 | . . 1 . . . . 1 . 1 Parts Attached 108 | 7 2 19 1 9 6 3 6 1 54 Power 19 | 1 . 3 . 1 1 . 1 . 12 Engine 5 | 1 . 3 . 1 . . . . . Core 2 | . . . . . 1 . 1 . . Reactor 12 | . . . . . . . . . 12 Propulsion 26 | 2 . 7 . 2 . 2 1 . 12 Treads 17 | . . 7 . 2 . 2 1 . 5 Leg 4 | . . . . . . . . . 4 Wheel 2 | 2 . . . . . . . . . Hover 3 | . . . . . . . . . 3 Flight . | . . . . . . . . . . Utility 31 | 2 1 5 1 2 3 1 1 1 14 Device 18 | 1 1 2 . 2 2 1 1 . 8 Storage 4 | 1 . 1 . . . . . 1 1 Processor 5 | . . . 1 . 1 . . . 3 Hackware 1 | . . . . . . . . . 1 Protection 3 | . . 2 . . . . . . 1 Artifact . | . . . . . . . . . . Weapon 32 | 2 1 4 . 4 2 . 3 . 16 Energy Gun 12 | . . 1 . 2 . . 1 . 8 Energy Cannon 10 | . . 1 . 2 1 . 2 . 4 Ballistic Gun 6 | 2 . 2 . . . . . . 2 Ballistic Cannon 1 | . . . . . . . . . 1 Launcher 2 | . . . . . 1 . . . 1 Special Weapon 1 | . 1 . . . . . . . . Impact Weapon . | . . . . . . . . . . Slashing Weapon . | . . . . . . . . . . Piercing Weapon . | . . . . . . . . . . Special Melee Weapon . | . . . . . . . . . . Unidentified Prototypes 4 | . . 1 . 1 . . . . 2 Corrupted Parts 2 | . . . . . . . . . 2 System Corruption 2 | . . . . . . . . . 2 Parts Lost 55 | . . 6 . . . . . . 49 Power 8 | . . . . . . . . . 8 Propulsion 16 | . . 2 . . . . . . 14 Utility 12 | . . 1 . . . . . . 11 Weapon 19 | . . 3 . . . . . . 16 Highest Loss Streak 12 | . . 2 . . . . . . 12 To Critical Strikes . | . . . . . . . . . . Average Backups 12 | 1 5 11 15 14 13 14 14 13 12 Power 1 | . 1 1 2 1 1 2 3 2 1 Propulsion 1 | 1 2 2 2 2 3 2 2 2 . Utility 6 | . 1 7 9 6 5 6 5 5 6 Weapon 2 | . . . 2 3 3 4 3 4 3 Tool/Special . | . . . . . . . . . . Unused Backups 24 | . . 3 . 2 3 2 2 2 10 Power 8 | . . 1 . 1 . 1 1 1 3 Propulsion 1 | . . . . . . . 1 . . Utility 10 | . . 1 . . 1 1 . . 7 Weapon 5 | . . 1 . 1 2 . . 1 . Tool/Special . | . . . . . . . . . . Average Slot Usage (%) 94 | . 100 93 100 99 98 99 99 99 87 Engine 6 | . 14 10 11 9 7 6 3 5 . Core 3 | . . . . . 6 6 7 10 3 Reactor 2 | . . . . . . . . . 7 Treads 19 | . . 25 33 27 23 26 23 21 10 Wheel 2 | . 28 7 . . . . . . . Device 18 | . 14 7 7 20 28 25 28 26 18 Storage 8 | . 14 11 11 9 7 6 5 9 8 Processor 5 | . . . 3 6 1 6 5 5 11 Energy Gun 7 | . . 3 . 16 15 13 6 5 5 Energy Cannon 7 | . . 4 11 9 6 6 15 15 9 Ballistic Gun 6 | . 22 16 22 1 . . . . 2 Peak Build Rating 119 | 7 7 14 13 21 30 40 62 70 119 Average Rating 44 | 4 7 10 13 16 26 36 54 69 88 On Entrance 26 | . 7 7 13 13 21 30 40 62 70 Avg Prop Armor Cover (%) 6 | . . 7 . . 7 . . . 6 Naked Turns . | . . . . . . . . . . Heaviest Build 114 | 11 11 37 34 42 48 48 67 77 114 Greatest Support 108 | 26 26 60 60 60 60 90 100 100 108 Greatest Overweight (x) 18 | . . 1 . . 1 . . . 18 Average Overweight (x) . | . . . . . . . . . 1 Largest Inventory Capacity 15 | 8 8 15 15 15 15 15 15 15 15 Average Capacity 14 | 6 8 14 15 15 15 15 15 15 14 Most Carried 15 | 3 8 15 15 15 15 15 15 14 15 Average Carried 12 | 1 5 11 15 14 13 14 14 13 12 Final Capacity 15 | 8 8 15 15 15 15 15 15 15 5 Final Carried 15 | 3 8 15 15 14 15 15 15 14 5 Class Distribution -------------------- 56% | Scavenger-Skirmisher 18% | Scavenger-Gunner 10% | Mutant 7% | Scavenger-Mutant 3% | Gunner Dominant Class ---------------- Mutant | -10/Materials Mutant | -9/Materials Scavenger-Gunner | -9/Mines Scavenger-Skirmisher | -8/Materials Scavenger-Skirmisher | -7/Factory Scavenger-Skirmisher | -6/Factory Scavenger-Skirmisher | -5/Factory Scavenger-Skirmisher | -4/Factory Scavenger-Skirmisher | -3/Research Resources | -11 -10 -9 -9 -8 -7 -6 -5 -4 -3 ----------- Run | Yrd Mat Mat Min Mat Fac Fac Fac Fac Res Matter Collected 2182 | 233 51 452 10 90 85 96 59 40 1066 Remotely . | . . . . . . . . . . Salvage Created 3779 | 16 11 979 . 295 74 25 97 . 2282 Parts 200 | 2 1 79 . 11 3 4 7 . 93 Haulers Intercepted 2 | . . 1 . . . . . . 1 Recyclers Shooed 2 | . . . . 1 . 1 . . . Parts Field Recycled . | . . . . . . . . . . Retrieved Matter . | . . . . . . . . . . Parts Self-Destructed . | . . . . . . . . . . Prevented . | . . . . . . . . . . Parts Restored . | . . . . . . . . . . Kills | -11 -10 -9 -9 -8 -7 -6 -5 -4 -3 ------- Run | Yrd Mat Mat Min Mat Fac Fac Fac Fac Res Combat Hostiles Destroyed 61 | . . 22 . 7 2 1 1 . 28 Guns 26 | . . 13 . 4 . 1 . . 8 Cannons 30 | . . 9 . 3 2 . 1 . 15 AOE 1 | . . . . . . . . . 1 Classes Destroyed 13 | 1 1 8 . 1 1 . . . 1 Worker 4 | . . 2 . . . . . . 2 Builder 3 | . . 2 . . . . 1 . . Tunneler 1 | 1 . . . . . . . . . Hauler 2 | . . 1 . . . . . . 1 Recycler 1 | . . . . 1 . . . . . Operator 3 | . . 1 . . . . 1 . 1 Watcher 8 | . 1 3 . . . . 1 . 3 Swarmer 7 | . . 4 . 3 . . . . . Grunt 25 | . . 12 . . . . 1 . 12 Brawler 2 | . . 1 . . . . . . 1 Sentry 11 | . . 5 . 4 1 . . . 1 Hunter 2 | . . . . . . . . . 2 Programmer 14 | . . . . . 1 1 . . 12 Best Kill Streak 7 | 1 1 7 . 5 1 1 2 . 5 Combat Bots Only 6 | . . 6 . 4 1 1 1 . 5 Max Kills in Single Turn 2 | 1 1 2 . 2 1 1 1 . 1 Gunslinging . | . . . . . . . . . . Exploded 1 | . . . . . . . . . 1 Melee . | . . . . . . . . . . Uniques/NPCs Destroyed . | . . . . . . . . . . Combat | -11 -10 -9 -9 -8 -7 -6 -5 -4 -3 -------- Run | Yrd Mat Mat Min Mat Fac Fac Fac Fac Res Hostile Shots Fired 602 | . . 144 . 12 21 4 . 2 419 Missed 165 | . . 38 . 5 8 . . 1 113 Hits 437 | . . 106 . 7 13 4 . 1 306 Projectile 437 | . . 106 . 7 13 4 . 1 306 Critical Strikes 27 | . . 4 . . . . . . 23 Part Disruptions 2 | . . . . . 1 . . . 1 Damage Taken 8681 | . . 1351 . 95 166 96 . 102 6871 Core 1627 | . . 273 . 15 . . . 17 1322 Absorbed by Shields . | . . . . . . . . . . Regen/Repaired (Parts) 55 | . . 55 . . . . . . . Core Remaining (%) 90 | 100 100 . 31 97 100 100 100 98 . Volleys Fired 252 | 3 12 105 . 11 7 2 3 1 108 Largest 5 | 2 2 3 . 3 3 3 4 4 5 Hottest 418 | 40 120 140 . 198 198 198 298 298 418 Shots Fired 681 | 6 17 224 . 23 19 6 12 4 370 Gun 383 | 6 9 179 . 12 12 4 3 1 157 Cannon 273 | . . 31 . 11 6 2 9 3 211 Launcher 3 | . . . . . 1 . . . 2 Special 22 | . 8 14 . . . . . . . Kinetic 201 | 6 9 139 . . . . . . 47 Thermal 424 | . 8 85 . 23 18 6 12 4 268 Explosive 3 | . . . . . 1 . . . 2 Electromagnetic 53 | . . . . . . . . . 53 Robot Hit Streak 21 | 2 4 18 . 12 21 15 4 1 10 Robot Miss Streak 9 | 3 2 3 . 4 2 1 3 1 9 Penetration Max 1 | . . . . . . . . . 1 Secondary Targets 2 | . . 2 . . . . . . . Max Gunslinging Chain 1 | . . 1 . . . . . . . Shots Hit Robots 366 | 2 4 148 . 14 9 5 5 2 177 Core Hits 188 | 2 2 54 . 28 16 8 3 . 75 Critical Kills 4 | . . . . . . . . . 4 Critical Parts Destroyed 1 | . . 1 . . . . . . . Critical Strikes 13 | . . 2 . . . . . . 11 Burn 4 | . . . . . . . . . 4 Meltdown 4 | . . . . . . . . . 4 Destroy 2 | . . 2 . . . . . . . Corrupt 3 | . . . . . . . . . 3 Melee Attacks . | . . . . . . . . . . Impact . | . . . . . . . . . . Slashing . | . . . . . . . . . . Piercing . | . . . . . . . . . . Sneak Attacks . | . . . . . . . . . . Combat Hostiles . | . . . . . . . . . . Follow-up Attacks . | . . . . . . . . . . Damage Inflicted 7985 | 26 31 1763 4 312 228 98 182 58 5283 Guns 3270 | 26 31 1143 . 183 130 68 29 . 1660 Cannons 4365 | . . 511 . 129 83 28 123 58 3433 Explosions 189 | . . . . . . . . . 189 Melee . | . . . . . . . . . . Ramming 113 | . . 61 4 . 15 2 30 . 1 Kinetic 1313 | 26 31 858 . . . . . . 398 Thermal 5857 | . . 844 . 312 213 96 152 58 4182 Explosive 189 | . . . . . . . . . 189 Electromagnetic 513 | . . . . . . . . . 513 Impact . | . . . . . . . . . . Slashing . | . . . . . . . . . . Piercing . | . . . . . . . . . . Highest Corruption 41 | . . . . . 2 2 . . 41 Average Corruption 8 | . . . . . 1 1 . . 10 Corruption Purged . | . . . . . . . . . . Corruption Blocked . | . . . . . . . . . . Effects 72 | . . . . . 2 10 . . 60 Message Errors 15 | . . . . . 1 3 . . 11 Matter Fused 17 | . . . . . 1 4 . . 12 Heat Flow Errors 11 | . . . . . . . . . 11 Energy Discharges 7 | . . . . . . 1 . . 6 Parts Rejected 2 | . . . . . . . . . 2 Data Loss (minor) 2 | . . . . . . 1 . . 1 Data Loss (major) 4 | . . . . . . 1 . . 3 Misfires 4 | . . . . . . . . . 4 Alerts 3 | . . . . . . . . . 3 Misdirections 2 | . . . . . . . . . 2 Weapon Failures 5 | . . . . . . . . . 5 Overload Shots . | . . . . . . . . . . Overflow Damage 217 | . . 31 . . . . 22 . 164 Projectiles 158 | . . 21 . . . . 22 . 115 Explosions 49 | . . . . . . . . . 49 Melee 10 | . . 10 . . . . . . . Knockbacks 2 | . . 1 . . . . . . 1 Impact 1 | . . 1 . . . . . . . Kinetic 1 | . . . . . . . . . 1 Secondary . | . . . . . . . . . . Self-Inflicted Damage 89 | . . . . . 12 . . . 77 Shots 3 | . . . . . 1 . . . 2 Rammed 19 | . . 11 1 . 1 2 3 . 1 Targets Rammed 20 | . . 11 1 . 1 2 4 . 1 Kicked . | . . . . . . . . . . Crushed 1 | . . . . . . . 1 . . Highest Temperature 827 | . 60 527 . 360 222 204 105 114 827 Average Temperature 143 | . 22 100 . 113 96 108 59 70 200 Received Heat Transfer 1108 | . . 546 . 27 6 . . . 529 Effects 56 | . . 5 . 1 . . . . 50 Shutdowns 22 | . . . . . . . . . 22 Energy Bleed 5 | . . 3 . . . . . . 2 Interference 12 | . . . . . . . . . 12 Matter Decay 2 | . . . . . . . . . 2 Short Circuit 3 | . . 1 . 1 . . . . 1 Damage (minor) 3 | . . . . . . . . . 3 Damage (major) 7 | . . 1 . . . . . . 6 Damage (core) 2 | . . . . . . . . . 2 Siege Activations . | . . . . . . . . . . Martial Activations . | . . . . . . . . . . Shielding Activations . | . . . . . . . . . . Robots Disrupted 2 | . . . . . . . . . 2 Combat Hostiles 2 | . . . . . . . . . 2 Robots Corrupted 1 | . . . . . . . . . 1 Combat Hostiles . | . . . . . . . . . . Parts Fried 1 | . . . . . . . . . 1 Impact Corruptions 1 | . . 1 . . . . . . . Robots Melted 5 | . . . . . . . . . 5 Combat Hostiles 4 | . . . . . . . . . 4 Parts Melted 32 | . . 2 . 1 3 . . . 26 Heat Transferred 8722 | . . 1675 . 452 266 127 198 87 5917 Parts Sabotaged . | . . . . . . . . . . Parts Stolen . | . . . . . . . . . . Parts Stripped . | . . . . . . . . . . Power Chain Reactions . | . . . . . . . . . . Alert | -11 -10 -9 -9 -8 -7 -6 -5 -4 -3 ------- Run | Yrd Mat Mat Min Mat Fac Fac Fac Fac Res Maximum Alert Level 1 | . . 1 . . . . . . 1 Low Security (%) 95 | 100 100 83 100 100 100 100 100 100 96 Level 1 4 | . . 16 . . . . . . 3 Level 2 . | . . . . . . . . . . Level 3 . | . . . . . . . . . . Level 4 . | . . . . . . . . . . Level 5 . | . . . . . . . . . . High Security . | . . . . . . . . . . Max Security . | . . . . . . . . . . Peak Influence 260 | 5 15 260 82 116 35 30 22 2 211 Initial 82 | . . . 82 . 24 2 . . . Average 46 | . 1 70 12 51 5 1 1 . 83 Influence Increases 2101 | 5 26 692 . 202 113 44 43 2 974 Destroy 0b10 Robot/C 1220 | . . 440 . 140 40 20 20 . 560 Destroy 0b10 Robot/NC 110 | 5 5 45 . 5 . . 15 . 35 Destroy Leader 330 | . 2 128 . 50 20 10 2 . 118 Successful Hack 41 | . . 5 . 4 14 14 . . 4 Disable Machine 75 | . 15 . . . 15 . . . 45 Destroy Structure 220 | . 4 14 . 3 9 . 6 2 182 Partial Spotted 15 | . . 15 . . . . . . . Lose Combat Pursuer 90 | . . 45 . . 15 . . . 30 Influence Decreases 2101 | 5 26 479 213 148 161 50 43 . 976 Entered New Map 167 | . . . 131 . 30 4 . . 2 Time Decay 1452 | 5 26 429 82 148 131 46 43 . 542 Lost Part 482 | . . 50 . . . . . . 432 Squads Dispatched 27 | . 1 4 . 4 2 3 3 1 9 Investigation 3 | . . 2 . 1 . . . . . Extermination 11 | . . . . . 2 2 1 . 6 Reinforcement 10 | . 1 2 . . . 1 2 1 3 Assault 2 | . . . . 2 . . . . . Garrison 1 | . . . . 1 . . . . . Intercept . | . . . . . . . . . . Searches Triggered . | . . . . . . . . . . Construction Impeded 2 | . . . . . . . . . 2 Haulers Reinforced . | . . . . . . . . . . Active Scanning Responses . | . . . . . . . . . . Cargo Convoy Interrupts . | . . . . . . . . . . Stealth | -11 -10 -9 -9 -8 -7 -6 -5 -4 -3 --------- Run | Yrd Mat Mat Min Mat Fac Fac Fac Fac Res Distress Signals 5 | . . 2 . 3 . . . . . Communications Jammed 6 | . . . . . . . . . 6 Distress Signals 6 | . . . . . . . . . 6 Times Spotted 116 | . 4 38 . 9 2 6 6 7 44 Peak Tracking Total 6 | . 3 6 . 4 2 3 3 3 6 Tactical Retreats 5 | . . 2 . . 1 . . . 2 Traps | -11 -10 -9 -9 -8 -7 -6 -5 -4 -3 ------- Run | Yrd Mat Mat Min Mat Fac Fac Fac Fac Res Traps Triggered 7 | . . 1 . . . 1 . . 5 Indirectly . | . . . . . . . . . . Trap Hack Attempts . | . . . . . . . . . . Triggered . | . . . . . . . . . . Disarmed . | . . . . . . . . . . Reprogrammed . | . . . . . . . . . . Reused . | . . . . . . . . . . Traps Extracted . | . . . . . . . . . . Installed . | . . . . . . . . . . Triggered . | . . . . . . . . . . Machines | -11 -10 -9 -9 -8 -7 -6 -5 -4 -3 ---------- Run | Yrd Mat Mat Min Mat Fac Fac Fac Fac Res Machines Disabled 5 | . 1 . . . 1 . . . 3 Max in Single Turn 1 | . 1 . . . 1 . . . 1 Garrison Access 1 | . . . . 1 . . . . . Machines Repaired . | . . . . . . . . . . Machines Dismantled . | . . . . . . . . . . Machines Sabotaged . | . . . . . . . . . . Overloaded Fab Kills . | . . . . . . . . . . Hacking | -11 -10 -9 -9 -8 -7 -6 -5 -4 -3 --------- Run | Yrd Mat Mat Min Mat Fac Fac Fac Fac Res Machines Accessed 11 | . 2 1 . 2 1 3 . . 2 Terminals 7 | . 2 . . 1 1 2 . . 1 Fabricators . | . . . . . . . . . . Repair Stations 2 | . . 1 . . . 1 . . . Recycling Units . | . . . . . . . . . . Scanalyzers 2 | . . . . 1 . . . . 1 Garrison Access . | . . . . . . . . . . Total Hacks 30 | . 4 5 . 9 1 6 . . 5 Successful 15 | . . 4 . 6 1 1 . . 3 Failed 15 | . 4 1 . 3 . 5 . . 2 Catastrophic 2 | . 1 . . . . 1 . . . Database Lockouts . | . . . . . . . . . . Manual 1 | . 1 . . . . . . . . Terminals 13 | . 4 . . 2 1 4 . . 2 Fabricators . | . . . . . . . . . . Repair Stations 7 | . . 5 . . . 2 . . . Recycling Units . | . . . . . . . . . . Scanalyzers 10 | . . . . 7 . . . . 3 Garrison Access . | . . . . . . . . . . Terminal Hacks 4 | . . . . 1 1 1 . . 1 Record 2 | . . . . . 1 . . . 1 Emergency Access Points 1 | . . . . 1 . . . . . Locate Traps 1 | . . . . . . 1 . . . Fabricator Hacks . | . . . . . . . . . . Repair Station Hacks 4 | . . 4 . . . . . . . Scan Component 2 | . . 2 . . . . . . . Repair 2 | . . 2 . . . . . . . Recycling Unit Hacks . | . . . . . . . . . . Scanalyzer 7 | . . . . 5 . . . . 2 Insert Component 1 | . . . . 1 . . . . . Retrieve Study 6 | . . . . 4 . . . . 2 Garrison Access Hacks . | . . . . . . . . . . Unauthorized Hacks . | . . . . . . . . . . Terminals . | . . . . . . . . . . Fabricators . | . . . . . . . . . . Repair Stations . | . . . . . . . . . . Recycling Units . | . . . . . . . . . . Scanalyzers . | . . . . . . . . . . Garrison Access . | . . . . . . . . . . Data Cores Recovered . | . . . . . . . . . . Used . | . . . . . . . . . . Hacking Detections 9 | . 2 1 . 2 . 3 . . 1 Full Trace Events 2 | . . 1 . 1 . . . . . Feedback Events . | . . . . . . . . . . Feedback Blocked . | . . . . . . . . . . Robot Schematics Acquired . | . . . . . . . . . . Robots Built . | . . . . . . . . . . Authchips . | . . . . . . . . . . Time . | . . . . . . . . . . Total Robot Build Rating . | . . . . . . . . . . Part Schematics Acquired . | . . . . . . . . . . Parts Built . | . . . . . . . . . . Authchips . | . . . . . . . . . . Time . | . . . . . . . . . . Total Part Build Rating . | . . . . . . . . . . Part Studies Acquired 6 | . . . . 4 . . . . 2 Parts Repaired 2 | . . 2 . . . . . . . Time 52 | . . 52 . . . . . . . Parts Recycled . | . . . . . . . . . . Recycled Matter . | . . . . . . . . . . Retrieved Matter . | . . . . . . . . . . Retrieved Components . | . . . . . . . . . . Parts Scanalyzed . | . . . . . . . . . . Part Schematics Acquired . | . . . . . . . . . . Parts Damaged . | . . . . . . . . . . Bothacking | -11 -10 -9 -9 -8 -7 -6 -5 -4 -3 ------------ Run | Yrd Mat Mat Min Mat Fac Fac Fac Fac Res Used RIF Installer . | . . . . . . . . . . Robots Hacked . | . . . . . . . . . . Non-combat . | . . . . . . . . . . Combat . | . . . . . . . . . . Robot Hacks Applied . | . . . . . . . . . . Relay Couplers Released 2 | . . . . 2 . . . . . Machine Destruction 2 | . . . . 2 . . . . . Fabnet Peak Effective % . | . . . . . . . . . . Robots Rewired . | . . . . . . . . . . Allies Hacked . | . . . . . . . . . . Hacks Repelled . | . . . . . . . . . . Allies | -11 -10 -9 -9 -8 -7 -6 -5 -4 -3 -------- Run | Yrd Mat Mat Min Mat Fac Fac Fac Fac Res Total Allies . | . . . . . . . . . . Largest Group . | . . . . . . . . . . Highest-Rated Group . | . . . . . . . . . . Highest-Rated Ally . | . . . . . . . . . . Total Orders . | . . . . . . . . . . Ally Attacks . | . . . . . . . . . . Total Damage . | . . . . . . . . . . Kills . | . . . . . . . . . . Allies Corrupted . | . . . . . . . . . . Allies Melted . | . . . . . . . . . . Intel | -11 -10 -9 -9 -8 -7 -6 -5 -4 -3 ------- Run | Yrd Mat Mat Min Mat Fac Fac Fac Fac Res Active Infowar (turns) 6418 | 12 283 874 . 506 780 910 407 132 2514 Optics 2421 | . . . . . . . . . 2421 Sensors 4160 | . . . . 506 780 910 407 132 1425 Terrain 15 | . . . . . . . . . 15 Structural 3739 | . 51 341 . 198 550 909 407 132 1151 Seismic 813 | 12 232 533 . . 36 . . . . Cloaking 832 | . . . . . . . . . 832 Jamming 244 | . . . . . . . . . 244 Robot Analysis Total . | . . . . . . . . . . Derelict Logs Recovered 3 | . . . 3 . . . . . . Drone Launches . | . . . . . . . . . . Drone Recoveries . | . . . . . . . . . . Exploration | -11 -10 -9 -9 -8 -7 -6 -5 -4 -3 ------------- Run | Yrd Mat Mat Min Mat Fac Fac Fac Fac Res Turns Passed 7802 | 74 283 1602 594 506 780 910 407 132 2514 Spaces Moved 3813 | 62 255 722 367 238 425 533 224 72 915 Core 11 | 7 . . . . . . . . 4 Treads 2918 | . . 542 367 238 425 533 224 72 517 Legs 201 | . . . . . . . . . 201 Wheels 490 | 55 255 180 . . . . . . . Hover 193 | . . . . . . . . . 193 Flight . | . . . . . . . . . . Fastest Speed 50 | 50 90 90 160 160 160 160 160 160 116 Average Speed 161 | 84 90 144 160 160 161 160 160 160 201 Slowest Speed 950 | 90 90 240 160 160 200 160 160 160 950 Overloaded Moves . | . . . . . . . . . . Propulsion Burnouts . | . . . . . . . . . . Robots Hopped . | . . . . . . . . . . Potential Cave-ins . | . . . . . . . . . . Cave-ins Triggered . | . . . . . . . . . . Exploration Rate (%) 22 | 5 32 34 76 32 11 12 7 3 14 Regions Visited 9 Branch Regions 1 Pre-discovered Areas 1 | . . . 1 . . . . . . Known Exits Taken 5 | . . . 1 . 1 1 1 1 . Unknown Exits Taken 4 | 1 1 1 . 1 . . . . . Scrap Searched 1 | . . . 1 . . . . . . Spaces Dug 44 | . 5 10 . . 9 . . . 20 Terrain Destroyed 160 | . 5 11 . 2 9 . 3 1 129 Melee . | . . . . . . . . . . Projectile 72 | . 5 11 . 2 . . 3 1 50 AOE 88 | . . . . . 9 . . . 79 Terrain Rammed . | . . . . . . . . . . Walls Destroyed . | . . . . . . . . . . Machines Disabled . | . . . . . . . . . . Actions | -11 -10 -9 -9 -8 -7 -6 -5 -4 -3 --------- Run | Yrd Mat Mat Min Mat Fac Fac Fac Fac Res Total 4909 | 75 275 1070 373 347 501 588 265 87 1328 Wait 540 | . 1 175 5 70 49 34 18 8 180 Move 3804 | 61 254 721 366 237 424 532 223 71 915 Hop . | . . . . . . . . . . Pick Up 72 | 4 5 16 . 6 6 7 3 3 22 Fast Attach 62 | 6 . 11 . 2 1 . 2 . 40 Attach 38 | 1 . 4 . 3 1 2 2 2 23 Detach 10 | . . 2 . 2 . . 2 . 4 Swap 52 | . 3 11 1 6 7 2 3 . 19 Drop 59 | . . 14 . 10 5 7 5 2 16 Fire 252 | 3 12 105 . 11 7 2 3 1 108 Melee . | . . . . . . . . . . Ram 1 | . . . . . . . . . 1 Kick . | . . . . . . . . . . Crush 19 | . . 11 1 . 1 2 4 . . Escape Stasis . | . . . . . . . . . . Rewire . | . . . . . . . . . . Trap . | . . . . . . . . . . Miscellaneous . | . . . . . . . . . . Route ------- -11/Scrapyard -10/Materials (discovered 2 exits: *Mat / [*Min]) -9/Materials (discovered 2 exits: [*Min] / [*Sto]) -9/Mines (discovered 2 exits: *Mat x2) -8/Materials -7/Factory -6/Factory -5/Factory -4/Factory -3/Research History --------- Turn | Location | Event 24 | -11/Scrapyard | Discovered new exit (range 15) 75 | -11/Scrapyard | Entered Materials 87 | -10/Materials | Discovered new exit (range 16) 300 | -10/Materials | Build established: Mutant 342 | -10/Materials | Discovered new exit (range 15) 358 | -10/Materials | Entered another Materials area 358 | -9/Materials | Evolved 2 slots: Propulsion x1, Weapon x1 659 | -9/Materials | Build established: Gunner 765 | -9/Materials | Repaired Seismic Detector 793 | -9/Materials | Repaired Lgt. Ion Engine 991 | -9/Materials | Build established: Mutant 1475 | -9/Materials | Discovered new exit (range 15) 1564 | -9/Materials | Build established: Scavenger-Skirmisher 1621 | -9/Materials | Core integrity fell below 50% 1821 | -9/Materials | Discovered new exit (range 10) 1960 | -9/Materials | Entered Mines 1984 | -9/Mines | Discovered new exit (range 15) 2009 | -9/Mines | Build established: Scavenger-Gunner 2189 | -9/Mines | Learned Materials trap positions 2191 | -9/Mines | Learned location of Storage (-9) 2303 | -9/Mines | Learned Materials trap positions 2342 | -9/Mines | Received a Rocket Launcher from a helpful Derelict 2345 | -9/Mines | Discovered new exit (range 5) 2365 | -9/Mines | Identified exit to Materials 2554 | -9/Mines | Entered Materials 2554 | -8/Materials | Evolved 2 slots: Utility x2 2555 | -8/Materials | Loaded intel: 18 trap records 2584 | -8/Materials | Garrison activated, responded to threat 2851 | -8/Materials | Build established: Scavenger-Skirmisher 2957 | -8/Materials | Met 7R-MNS 3027 | -8/Materials | Discovered new exit (range 16) 3060 | -8/Materials | Entered Factory 3060 | -7/Factory | Evolved 2 slots: Power x1, Utility x1 3061 | -7/Factory | Caught up to 7R-MNS 3651 | -7/Factory | Discovered new exit (range 7) 3663 | -7/Factory | Identified exit to Factory 3840 | -7/Factory | Entered another Factory area 3840 | -6/Factory | Evolved 2 slots: Propulsion x1, Utility x1 3841 | -6/Factory | Caught up to 7R-MNS 4486 | -6/Factory | Discovered new exit (range 7) 4496 | -6/Factory | Identified exit to Factory 4750 | -6/Factory | Entered another Factory area 4750 | -5/Factory | Evolved 2 slots: Utility x1, Weapon x1 4751 | -5/Factory | Caught up to 7R-MNS 5134 | -5/Factory | Discovered new exit (range 8) 5145 | -5/Factory | Identified exit to Factory 5157 | -5/Factory | Entered another Factory area 5157 | -4/Factory | Evolved 2 slots: Power x1, Utility x1 5158 | -4/Factory | Caught up to 7R-MNS 5274 | -4/Factory | Discovered new exit (range 3) 5282 | -4/Factory | Identified exit to Research 5289 | -4/Factory | Entered Research 5289 | -3/Research | Evolved 2 slots: Utility x1, Weapon x1 6439 | -3/Research | Lost 5 parts (2n2u1w) 6509 | -3/Research | Lost 3 parts (2n1u) 6845 | -3/Research | Lost 7 parts (2p2n1u2w) 6979 | -3/Research | System corruption reached 10% 6981 | -3/Research | Core integrity fell below 50% 7023 | -3/Research | Lost 9 parts (2n3u4w) 7345 | -3/Research | Core integrity fell below 20% 7358 | -3/Research | Lost 12 parts (3p3n2u4w) 7580 | -3/Research | Build established: Scavenger-Mutant 7759 | -3/Research | System corruption reached 30% 7803 | -3/Research | Destroyed by P-80 Master with Gamma Rifle Last Messages --------------- 07768_ System corrupted: Field Laser failed to cycle. 07768_ P-80 Master shuts down. 07772_ Acquired 10 matter. 07773_ :RM, 07774_ Destroyed Sml. Battery. 07783_ P-80 Master suffers critical hit (Burn). 07783_ P-80 Master reactivates. 07784_ P-80 Master resets P-80 Master, system corruption cleaned. 07789_ System corrupted: Matter fused (-5). 07789_ Acquired 5 matter. 07789_ System corrupted: Com. HERF Cannon failed to cycle. 07789_ P-80 Master resets P-80 Master, system corruption cleaned. 07791_ Adv. Heat Sink destroyed. 07791_ Lrg. Storage Unit destroyed. 07791_ Lgt. Particle Reactor destroyed. 07794_ Imp. Antigrav System destroyed. 07797_ P-80 Master resets P-80 Master, system corruption cleaned. 07798_ System corrupted: Field Laser failed to cycle. 07800_ Field Laser destroyed. Map ----- +----------------------------------------------------+ | # """ """##### ^ # ????? # # | | # """ S"##### # ????? # + | | # """ ##?## # ????? # # | | ## """ ##### # ????? #### # | | ## """ ##### + ????? #### # | | ## ##""" # ????????## # ! | | ## ##"T # ????????## # """ | | ##%! ##""" # ????????## ####### | | + ##### ^ # ????????## ####### | | ################### ""# ????????## ##????? | | ###### ? # ""# #### ####### | | ????## ]] ! # ""###+########+####### | | ????## ]] + "" T### #### | | #??## ] # """ ""### #### | | #### # """ ""### #### | | ################# ""### #### | | ## # """ """ | | ## # """ """ | | ## + """ """ | | ## ! ### %# """ """ | | # ## ##########+#############+##/# """ """ | | [ ### ####### ##### # | | ### ##???## ##### # | | = ##???## ### # "" # | | #???### ]###%# " ############# | | #??#### !p@=!p T ############# | | ####### !! !##### "" o ##??????????? | | #####+########## !! ##### "" ##??????????? | | ### #%! """ ## ! ##?## ##??????????? | | #?# "=%["""" ## ##?## ##??????????? | | ?## %! """ ############?############??????????? | | ?# * # # #######?############??????????? | | ?# ########???????????????????????????? | | ?## !% #######????????????????????????????? | | ?## ##?????????????????????????????????? | | ?# ##?????????????????????????????????? | | ?# #######?????????????????????????????????? | | ?# # #########?????????????????????????????????? | | ###### #?????????????????????????????????????????? | | ####?????????????????????????????????????????? | | #????????????????????????????????????????????? | | #????????????????????????????????????????????? | | #????????????????????????????????????????????? | | #????????????????????????????????????????????? | | #????????????????????????????????????????????? | | #????????????????????????????????????????????? | | ! #????????????????????????????????????????????? | | #????????????????????????????????????????????? | | #####????????????????????????????????????????????? | | % ####???????????????????????????????????????????? | +----------------------------------------------------+ Best States ------------- Heat Dissipation 106 Energy Generation 59 Energy Capacity 890 Matter Stores 300 Matter Capacity 300 Sight Range 20 Robot Scan Range 15 Terrain Scan Range 20 Terrain Scan Density 10 Jamming Range 16 Cloak Strength 2 Armor Coverage 150 Power Shielding 33 Evasion (%) 44 Target Analysis 12 Recoil Reduction 4 Particle Charging 15 Offensive Hacking 14 Item Schematics ----------------- None Robot Schematics ------------------ None Fabricated ------------ Nothing Repaired ---------- Seismic Detector | 5% | -9/Materials Lgt. Ion Engine | 10% | -9/Materials Studied --------- Spread Laser | -8/Materials | Hacked Rocket Launcher | -8/Materials | Hacked Lgt. Treads | -8/Materials | Hacked Lgt. Nuclear Core | -8/Materials | Hacked Imp. Medium Treads | -3/Research | Hacked Med. Treads | -3/Research | Hacked Alien Tech Used ----------------- None Achievements -------------- None Challenges ------------ None Game ------ Seed CompositeOvertunedCarapace Manual? 0 Play Time 01:13:11 Cumulative 36.4 hours Start 2026.01.30 @ 20:26:12 End 2026.01.30 @ 21:44:08 Sessions 1 Manual Loads 0 Difficulty Rogue Special Mode None Game No. 35 Rogue 35 Adventurer 0 Explorer 0 Win Type - Total 0 Types 0/0/0/0/0/0/0/0/0/0 Lore% 14 Gallery% 30 Achievement% 22 Wizard Run 0 Options --------- Layout 0 ASCII 0 Keyboard 1 Movement Numpad Keybinds 0 Fullscreen 1 Font 24/Crisp Map View 76x50 Zoom Use 0% Tactical HUD 1 Map Filters NONE Filters NONE Steam 1 RUN: 583d4d35-b8b1-43e8-bfcf-7257e4db5dd7